bitfinex-derivatives/quotes_SOLF0:USTF0_20250113
["timestamp","ask_amount","ask_price","bid_price","bid_amount"]
[1736766843662,92.79993373,177.5,177.41,4.7551]
[1736766843864,6.22,177.5,177.41,4.7551]
[1736766844673,88.57562638,177.52,177.46,2.8199]
[1736766844867,19.9605985,177.52,177.43,13.7405985]
[1736766845267,13.7405985,177.55,177.43,13.7405985]
[1736766845465,6.22,177.53,177.43,13.7405985]
[1736766845767,6.22,177.53,177.46,2.8198]
[1736766845967,6.22,177.53,177.43,13.7405985]
[1736766846465,13.7405985,177.52,177.41,4.7551]
[1736766846663,13.7405985,177.49,177.41,4.7551]
[1736766846859,13.7405985,177.46,177.41,3.202]
[1736766847060,13.7405985,177.46,177.41,1.6417]
[1736766847061,19.9605985,177.46,177.41,1.6417]
[1736766848073,19.9605985,177.46,177.38,2.8211]
[1736766848873,13.7405985,177.43,177.36,6.1571]
[1736766849162,13.7405985,177.43,177.36,3.3356]
[1736766850868,13.7405985,177.43,177.38,2.8212]
[1736766851169,19.9605985,177.43,177.36,3.3356]
[1736766851363,19.9605985,177.43,177.37,2.8213]
[1736766851868,19.9605985,177.43,177.37,16.02]
[1736766853668,6.22,177.43,177.37,16.02]
[1736766854970,6.22,177.44,177.37,16.02]
[1736766855766,13.7405985,177.42,177.37,16.02]
[1736766862377,13.7405985,177.45,177.37,16.02]
[1736766862577,6.22,177.44,177.37,16.02]
[1736766864488,6.22,177.44,177.37,18.8412]
[1736766865480,6.22,177.44,177.37,18.8413]
[1736766865892,6.22,177.44,177.37,16.02]
[1736766866087,13.7405985,177.42,177.37,16.02]
[1736766866794,13.7405985,177.39,177.37,16.02]
[1736766867181,13.7405985,177.36,177.3,3.7]
[1736766867388,6.22,177.35,177.3,3.7]
[1736766868391,6.22,177.35,177.3,20.0]
[1736766868596,13.7405985,177.33,177.3,20.0]
[1736766869894,6.22,177.35,177.3,20.0]
[1736766876400,6.22,177.35,177.3,22.8224]
[1736766877700,13.7405985,177.36,177.3,22.8224]
[1736766877901,6.22,177.35,177.3,22.8224]
[1736766878497,6.22,177.35,177.31,2.8223]
[1736766879292,13.7405985,177.39,177.3,20.0]
[1736766879497,6.22,177.38,177.32,2.8221]
[1736766880789,6.22,177.38,177.31,2.8222]
[1736766881997,13.7405985,177.39,177.3,20.0]
[1736766882300,6.22,177.38,177.33,2.8218]
[1736766882696,13.7405985,177.39,177.33,2.8218]
[1736766882900,6.22,177.38,177.33,2.8218]
[1736766883797,13.7405985,177.42,177.3,20.0]
[1736766884000,6.22,177.41,177.34,2.8217]
[1736766884198,6.22,177.41,177.31,13.7405985]
[1736766884398,6.22,177.41,177.33,2.8219]
[1736766885402,13.7405985,177.39,177.32,2.8221]
[1736766885902,6.22,177.41,177.32,2.8221]
[1736766886201,13.7405985,177.39,177.3,22.8224]
[1736766886594,13.7405985,177.39,177.3,20.0]
[1736766887400,8.80335456,177.37,177.32,2.8221]
[1736766888001,8.80335456,177.37,177.31,8.80335456]
[1736766888302,6.22,177.41,177.33,8.80335456]
[1736766888504,8.80335456,177.39,177.34,3.2019]
[1736766889102,8.80335456,177.37,177.34,3.2019]
[1736766889999,8.80335456,177.38,177.34,3.2019]
[1736766890507,6.22,177.41,177.32,1.7078]
[1736766890806,8.80335456,177.38,177.32,1.7078]
[1736766892106,8.80335456,177.38,177.34,2.8218]
[1736766892607,6.22,177.41,177.34,2.8218]
[1736766892912,70.94751645,177.48,177.35,8.80335456]
[1736766893206,8.80335456,177.42,177.35,8.80335456]
[1736766893597,8.80335456,177.42,177.37,8.80335456]
[1736766893797,8.80335456,177.44,177.38,3.3198]
[1736766894001,70.05031645,177.48,177.41,2.8207]
[1736766894200,8.80335456,177.46,177.39,10.48515456]
[1736766894401,8.80335456,177.44,177.39,10.48515456]
[1736766894607,8.80335456,177.44,177.39,4.5027]
[1736766895305,13.74552699,177.46,177.39,4.5027]
[1736766896706,13.74552699,177.46,177.39,1.6818]
[1736766897206,13.74552699,177.43,177.39,1.6818]
[1736766897407,13.74552699,177.43,177.38,3.3198]
[1736766898007,13.74552699,177.43,177.38,1.6678]
[1736766898304,13.74552699,177.4,177.33,3.2032]
[1736766899211,13.74552699,177.4,177.33,6.0251]
[1736766899410,13.74552699,177.4,177.33,3.2032]
[1736766899610,6.2,177.42,177.37,2.8213]
[1736766899911,92.79993373,177.5,177.35,13.74552699]
[1736766900114,13.74552699,177.48,177.35,13.74552699]
[1736766900414,13.74552699,177.48,177.36,13.74552699]
[1736766900613,92.79993373,177.5,177.39,13.74552699]
[1736766900810,13.74552699,177.54,177.42,13.74552699]
[1736766901111,6.2,177.53,177.43,1.5926]
[1736766901304,13.74552699,177.51,177.43,1.5926]
[1736766901917,13.74552699,177.51,177.46,2.8198]
[1736766902105,13.74552699,177.51,177.43,1.5926]
[1736766902711,13.74552699,177.48,177.43,1.5926]
[1736766903312,13.74552699,177.48,177.4,6.1038]
[1736766903611,13.74552699,177.48,177.4,3.2829]
[1736766904216,13.74552699,177.45,177.4,1.6742]
[1736766904413,19.94552699,177.45,177.37,1.7028]
[1736766905310,19.94552699,177.45,177.37,4.5242]
[1736766905507,13.74552699,177.42,177.34,3.1304]
[1736766905915,6.2,177.44,177.38,2.8212]
[1736766906313,6.2,177.44,177.39,1.6769]
[1736766907811,6.2,177.44,177.34,3.1304]
[1736766908020,13.74552699,177.42,177.34,4.7418]
[1736766909016,13.74552699,177.39,177.34,3.1844]
[1736766910221,13.74552699,177.42,177.34,3.1844]
[1736766910714,13.74552699,177.42,177.37,2.8214]
[1736766910914,13.74552699,177.42,177.34,3.1844]
[1736766911823,13.74552699,177.42,177.37,2.8213]
[1736766912023,13.74552699,177.42,177.34,3.1844]
[1736766913022,13.74552699,177.42,177.35,2.8216]
[1736766913324,13.74552699,177.42,177.34,3.1844]
[1736766913625,13.74552699,177.42,177.34,6.0061]
[1736766914127,6.2,177.44,177.36,2.8214]
[1736766914423,19.94552699,177.44,177.34,3.1844]
[1736766914625,13.74552699,177.41,177.34,6.0062]
[1736766914820,13.74552699,177.41,177.34,3.1844]
[1736766915218,13.74552699,177.41,177.36,2.8215]
[1736766915621,13.74552699,177.41,177.34,3.1844]
[1736766915826,13.74552699,177.41,177.35,2.8216]
[1736766916620,13.74552699,177.41,177.34,3.1844]
[1736766917127,13.74552699,177.41,177.34,1.6114]
[1736766917721,13.74552699,177.41,177.34,15.7014]
[1736766920529,13.74552699,177.41,177.35,2.8217]
[1736766920730,13.74552699,177.41,177.34,14.09]
[1736766920925,13.74552699,177.41,177.34,16.9118]
[1736766922530,13.74552699,177.41,177.35,2.8216]
[1736766922726,92.79993373,177.51,177.34,14.09]
[1736766922931,13.74552699,177.45,177.34,27.83552699]
[1736766923132,6.2,177.44,177.37,2.8214]
[1736766923534,13.74552699,177.45,177.37,2.8214]
[1736766923731,6.2,177.44,177.38,2.8212]
[1736766924532,6.2,177.44,177.37,10.55]
[1736766924834,6.2,177.46,177.37,24.29552699]
[1736766925036,6.2,177.47,177.38,3.2897]
[1736766925331,19.94552699,177.48,177.38,3.2897]
[1736766925533,19.94552699,177.48,177.39,1.6247]
[1736766926133,19.94552699,177.48,177.42,2.8204]
[1736766926833,19.94552699,177.48,177.41,2.8207]
[1736766927932,19.94552699,177.48,177.39,1.6247]
[1736766928132,19.94552699,177.48,177.4,2.8208]
[1736766929337,19.94552699,177.48,177.39,1.6247]
[1736766929533,19.94552699,177.48,177.39,4.4457]
[1736766930026,19.94552699,177.48,177.39,1.6247]
[1736766930231,19.94552699,177.48,177.4,2.8209]
[1736766930836,13.74552699,177.45,177.38,1.5886]
[1736766931028,13.74552699,177.45,177.37,10.55]
[1736766931328,13.74552699,177.42,177.37,10.55]
[1736766931536,6.2,177.41,177.37,10.55]
[1736766936738,13.74552699,177.39,177.37,10.55]
[1736766937342,13.74552699,177.39,177.37,9.6533]
[1736766937544,13.74552699,177.39,177.34,14.09]
[1736766937743,13.74552699,177.36,177.29,2.8225]
[1736766938140,13.74552699,177.36,177.26,15.31822699]
[1736766938342,13.74552699,177.39,177.26,15.31822699]
[1736766938641,13.74552699,177.39,177.3,19.68]
[1736766939645,13.74552699,177.39,177.33,2.822]
[1736766940849,6.2,177.41,177.33,2.822]
[1736766941238,6.2,177.41,177.31,3.3235]
[1736766943344,6.2,177.41,177.32,2.8221]
[1736766943746,13.74552699,177.39,177.32,2.8221]
[1736766945742,13.74552699,177.39,177.31,3.3235]
[1736766945946,13.74552699,177.39,177.33,2.822]
[1736766946344,6.2,177.41,177.35,2.8216]
[1736766948047,92.79993373,177.5,177.32,13.74552699]
[1736766948345,13.74552699,177.48,177.35,13.74552699]
[1736766948549,13.74552699,177.48,177.36,1.6606]
[1736766949243,13.74552699,177.48,177.39,2.821]
[1736766950353,6.2,177.47,177.39,2.821]
[1736766950650,13.74552699,177.45,177.36,1.6606]
[1736766951048,13.74552699,177.42,177.31,3.3235]
[1736766951252,13.74552699,177.39,177.31,5.0011]
[1736766951553,13.74552699,177.37,177.3,22.5024]
[1736766952648,13.74552699,177.37,177.3,19.68]
[1736766952943,6.2,177.39,177.3,19.68]
[1736766953147,19.94552699,177.39,177.3,19.68]
[1736766953343,6.2,177.39,177.3,19.68]
[1736766953549,6.2,177.39,177.31,2.8222]
[1736766953852,6.2,177.39,177.3,19.68]
[1736766954252,6.2,177.39,177.33,2.822]
[1736766954553,6.2,177.39,177.31,3.3067]
[1736766954855,6.2,177.39,177.32,2.8221]
[1736766955051,6.2,177.39,177.31,3.3067]
[1736766955352,6.2,177.39,177.3,19.68]
[1736766955752,22.01117407,177.38,177.3,19.68]
[1736766963358,22.01117407,177.41,177.3,19.68]
[1736766963560,6.2,177.37,177.3,19.68]
[1736766964454,6.2,177.37,177.31,2.8223]
[1736766964659,6.2,177.37,177.3,19.68]
[1736766964861,6.2,177.37,177.3,3.7]
[1736766966150,6.2,177.37,177.3,20.32]
[1736766966957,6.2,177.37,177.31,1.7098]
[1736766967552,6.2,177.37,177.31,4.5321]
[1736766968363,96.84,177.46,177.31,4.5321]
[1736766968364,22.01117407,177.44,177.33,2.822]
[1736766968559,22.01117407,177.44,177.32,1.6373]
[1736766968760,6.2,177.43,177.32,1.6373]
[1736766969362,22.01117407,177.44,177.32,1.6373]
[1736766969557,6.2,177.43,177.32,1.6373]
[1736766970565,6.2,177.43,177.35,2.8217]
[1736766970767,6.2,177.43,177.32,1.6373]
[1736766971266,6.2,177.43,177.34,2.8217]
[1736766971560,6.2,177.43,177.35,1.5898]
[1736766971764,6.2,177.43,177.32,1.6373]
[1736766971960,22.01117407,177.41,177.32,1.6373]
[1736766972359,22.01117407,177.41,177.31,1.7098]
[1736766972555,22.01117407,177.38,177.3,21.9098]
[1736766972761,22.01117407,177.38,177.3,20.32]
[1736766973461,13.76101036,177.37,177.3,20.32]
[1736766973668,6.2,177.36,177.3,20.32]
[1736766977364,6.2,177.37,177.31,1.5903]
[1736766977760,19.96101036,177.37,177.31,1.5903]
[1736766978859,19.96101036,177.37,177.3,20.32]
[1736766981669,19.96101036,177.37,177.3,23.1424]
[1736766981871,13.76101036,177.4,177.3,20.32]
[1736766982170,6.2,177.4,177.32,13.76101036]
[1736766982360,6.2,177.4,177.33,5.076]
[1736766984165,6.2,177.4,177.34,2.8218]
[1736766985169,6.2,177.4,177.33,5.076]
[1736766985374,6.2,177.4,177.35,2.8216]
[1736766985874,6.2,177.4,177.35,16.0016]
[1736766986067,6.2,177.4,177.35,13.18]
[1736766987271,6.2,177.4,177.35,16.0017]
[1736766988277,110.60101036,177.46,177.35,26.94101036]
[1736766988478,6.2,177.45,177.35,26.94101036]
[1736766988871,6.2,177.45,177.39,2.8209]
[1736766989876,110.60101036,177.46,177.39,2.8209]
[1736766990078,6.2,177.45,177.39,2.8209]
[1736766991178,110.60101036,177.46,177.39,2.8209]
[1736766991381,6.2,177.45,177.39,2.8209]
[1736766992175,6.2,177.45,177.35,13.18]
[1736766992474,13.76101036,177.43,177.35,13.18]
[1736766993671,13.76101036,177.43,177.36,2.8215]
[1736766993869,13.76101036,177.43,177.35,13.18]
[1736766994271,13.76101036,177.43,177.37,2.8212]
[1736766994577,6.2,177.45,177.37,2.8212]
[1736766996278,6.2,177.45,177.38,2.8212]
[1736766997281,6.2,177.45,177.38,13.7112]
[1736766998381,6.2,177.45,177.38,10.89]
[1736766999374,19.96101036,177.45,177.38,13.7112]
[1736766999981,19.96101036,177.45,177.38,10.89]
[1736767001084,13.76101036,177.42,177.38,10.89]
[1736767003587,19.96101036,177.45,177.38,10.89]
[1736767003784,6.18,177.44,177.38,10.89]
[1736767004786,6.18,177.44,177.38,13.7111]
[1736767004988,64.19846092,177.48,177.38,10.89]
[1736767005188,6.18,177.5,177.4,13.76101036]
[1736767005390,6.18,177.5,177.41,3.2724]
[1736767005590,6.18,177.5,177.41,4.8282]
[1736767005791,6.18,177.5,177.45,2.8201]
[1736767006691,13.76101036,177.52,177.47,2.8197]
[1736767006893,6.18,177.54,177.46,13.76101036]
[1736767007291,6.18,177.54,177.48,2.8196]
[1736767007487,6.18,177.54,177.49,3.3085]
[1736767007888,189.63993373,177.64,177.49,6.1278]
[1736767008187,13.76101036,177.61,177.49,17.06951036]
[1736767008396,13.76101036,177.61,177.5,1.6999]
[1736767008987,6.18,177.6,177.5,1.6999]
[1736767009185,6.18,177.6,177.53,2.8188]
[1736767009492,6.18,177.6,177.53,16.7288]
[1736767009692,6.18,177.6,177.54,2.8187]
[1736767009891,6.18,177.6,177.53,13.91]
[1736767010296,6.18,177.6,177.53,16.7287]
[1736767010599,6.18,177.6,177.53,13.91]
[1736767010998,6.18,177.6,177.53,16.729]
[1736767011695,6.18,177.6,177.53,13.91]
[1736767012091,6.18,177.65,177.55,13.76101036]
[1736767012395,19.94101036,177.66,177.55,13.76101036]
[1736767012598,19.94101036,177.66,177.53,13.91]
[1736767012799,19.94101036,177.66,177.56,2.8185]
[1736767015798,6.18,177.66,177.56,2.8185]
[1736767016001,13.76101036,177.64,177.53,13.91]
[1736767016601,13.76101036,177.64,177.59,2.818]
[1736767017305,13.76101036,177.64,177.58,2.8182]
[1736767017505,6.18,177.65,177.55,13.76101036]
[1736767017803,6.18,177.66,177.55,13.76101036]
[1736767018496,13.76101036,177.67,177.55,13.76101036]
[1736767018895,13.76101036,177.7,177.58,13.76101036]
[1736767019098,6.18,177.69,177.59,4.9512]
[1736767020104,6.18,177.69,177.62,2.8175]
[1736767023710,100.31009518,177.78,177.64,13.76101036]
[1736767023909,6.18,177.77,177.67,13.76101036]
[1736767024108,6.18,177.77,177.68,3.1553]
[1736767024409,114.07110554,177.78,177.71,2.8162]
[1736767024609,6.18,177.77,177.71,2.8162]
[1736767024809,114.07110554,177.78,177.7,2.8163]
[1736767025011,6.18,177.77,177.68,3.1553]
[1736767026015,13.76101036,177.75,177.68,3.1553]
[1736767026199,13.76101036,177.72,177.61,13.76101036]
[1736767026404,13.76101036,177.69,177.6,3.2749]
[1736767027213,13.76101036,177.69,177.63,2.8174]
[1736767027707,13.76101036,177.66,177.53,13.91]
[1736767027912,13.76101036,177.66,177.55,3.3634]
[1736767028414,13.76101036,177.66,177.58,2.8183]
[1736767028705,13.76101036,177.66,177.55,3.3634]
[1736767028909,6.18,177.71,177.6,13.76101036]
[1736767029112,6.18,177.7,177.6,13.76101036]
[1736767029302,6.18,177.7,177.61,1.6406]
[1736767029714,6.18,177.7,177.64,2.8172]
[1736767030613,13.76101036,177.72,177.66,2.8169]
[1736767030805,6.18,177.72,177.63,13.76101036]
[1736767031114,19.94101036,177.72,177.63,13.76101036]
[1736767033014,6.18,177.72,177.63,13.76101036]
[1736767034015,6.18,177.72,177.66,2.8169]
[1736767034316,6.18,177.72,177.63,13.76101036]
[1736767034515,19.94101036,177.72,177.64,2.8173]
[1736767034712,13.76101036,177.69,177.57,13.76101036]
[1736767034917,6.18,177.72,177.55,4.935]
[1736767034918,13.76101036,177.66,177.55,4.935]
[1736767035218,13.76101036,177.61,177.55,3.2807]
[1736767035809,13.76101036,177.61,177.53,13.91]
[1736767036013,13.76101036,177.58,177.53,13.91]
[1736767036215,13.76101036,177.66,177.53,13.91]
[1736767036216,13.76101036,177.55,177.53,13.91]
[1736767036613,6.18,177.56,177.53,13.91]
[1736767038116,6.18,177.56,177.53,16.7289]
[1736767039316,6.18,177.56,177.54,2.8189]
[1736767039718,6.18,177.56,177.5,13.76101036]
[1736767040017,6.18,177.61,177.53,13.76101036]
[1736767040518,6.18,177.61,177.56,2.8185]
[1736767041112,13.76101036,177.64,177.56,2.8185]
[1736767041420,6.18,177.63,177.57,2.8184]
[1736767042119,6.18,177.63,177.53,27.89101036]
[1736767042321,13.76101036,177.67,177.59,2.818]
[1736767042620,6.18,177.66,177.57,3.1741]
[1736767042819,13.76101036,177.67,177.57,3.1741]
[1736767043123,6.18,177.66,177.59,2.8181]
[1736767043322,13.76101036,177.68,177.59,2.8181]
[1736767043620,6.18,177.67,177.59,2.8181]
[1736767043921,6.18,177.67,177.57,3.1741]
[1736767044120,13.76101036,177.65,177.53,27.89101036]
[1736767044422,13.76101036,177.62,177.53,14.13]
[1736767045518,13.76101036,177.62,177.53,16.9489]
[1736767045723,13.76101036,177.62,177.53,14.13]
[1736767046418,13.76101036,177.62,177.53,16.949]
[1736767046621,13.76101036,177.58,177.53,14.13]
[1736767046916,6.18,177.57,177.53,14.13]
[1736767049223,13.76101036,177.55,177.53,14.13]
[1736767049424,13.76101036,177.55,177.42,16.96911036]
[1736767049624,13.76101036,177.52,177.42,16.96911036]
[1736767050128,13.76101036,177.52,177.45,2.8203]
[1736767050426,13.76101036,177.52,177.42,3.2081]
[1736767050622,13.76101036,177.49,177.45,15.6]
[1736767050825,6.18,177.48,177.45,15.6]
[1736767051021,13.76101036,177.46,177.45,15.6]
[1736767052931,6.18,177.48,177.45,15.6]
[1736767054029,13.76101036,177.49,177.45,15.6]
[1736767054228,6.18,177.48,177.45,26.71]
[1736767058725,13.76101036,177.52,177.45,26.71]
[1736767058930,6.18,177.51,177.45,26.71]
[1736767059232,6.18,177.5,177.45,26.71]
[1736767060228,6.18,177.5,177.45,29.5303]
[1736767061724,13.76101036,177.55,177.45,29.5303]
[1736767061928,6.18,177.54,177.45,26.71]
[1736767062132,13.76101036,177.55,177.46,2.8201]
[1736767062133,6.18,177.53,177.46,2.8201]
[1736767065536,6.18,177.53,177.45,32.67]
[1736767067439,13.76101036,177.55,177.45,32.67]
[1736767067638,6.18,177.54,177.46,2.8201]
[1736767069140,6.18,177.54,177.46,13.4501]
[1736767069339,6.18,177.54,177.46,10.63]
[1736767070041,6.18,177.54,177.46,13.4501]
[1736767071143,13.76101036,177.55,177.46,13.4501]
[1736767071446,6.18,177.54,177.46,13.4501]
[1736767072439,6.18,177.54,177.46,10.63]
[1736767072440,13.76101036,177.52,177.46,10.63]
[1736767073238,13.76101036,177.49,177.46,10.63]
[1736767076239,13.76101036,177.52,177.46,10.63]
[1736767076440,6.18,177.51,177.46,10.63]
[1736767076639,6.18,177.51,177.46,13.4501]
[1736767078348,6.18,177.51,177.46,10.63]
[1736767078550,13.76101036,177.5,177.46,10.63]
[1736767079354,13.76101036,177.47,177.46,10.63]
[1736767079648,13.76101036,177.47,177.45,11.11]
[1736767080841,13.76101036,177.47,177.33,3.4072]
[1736767081042,13.76101036,177.42,177.33,6.2292]
[1736767081241,6.18,177.41,177.33,3.4072]
[1736767082149,6.18,177.41,177.33,17.16821036]
[1736767083051,6.18,177.41,177.35,2.8217]
[1736767083245,6.18,177.41,177.33,17.16821036]
[1736767083452,6.18,177.41,177.33,3.4072]
[1736767086348,13.76101036,177.39,177.33,1.6998]
[1736767087054,286.79993373,177.51,177.33,1.6998]
[1736767087055,92.79993373,177.51,177.38,13.76101036]
[1736767087653,92.79993373,177.51,177.42,2.8208]
[1736767088055,13.76101036,177.52,177.42,2.8208]
[1736767088449,13.76101036,177.52,177.41,13.76101036]
[1736767088756,13.76101036,177.52,177.4,13.76101036]
[1736767090155,13.76101036,177.52,177.43,13.76101036]
[1736767091150,13.76101036,177.52,177.41,2.821]
[1736767091652,13.76101036,177.52,177.4,13.76101036]
[1736767092254,13.76101036,177.52,177.41,4.7941]
[1736767094158,13.76101036,177.52,177.42,2.8208]
[1736767095160,13.76101036,177.52,177.41,7.6151]
[1736767095358,13.76101036,177.52,177.41,4.7941]
[1736767096758,13.76101036,177.49,177.39,13.76101036]
[1736767097062,13.76101036,177.46,177.36,13.76101036]
[1736767097261,6.18,177.45,177.36,13.76101036]
[1736767097664,6.18,177.45,177.34,3.2227]
[1736767097864,6.18,177.45,177.34,16.98371036]
[1736767099064,6.18,177.45,177.34,3.2227]
[1736767100064,6.18,177.45,177.35,2.8219]
[1736767100259,96.12763373,177.51,177.34,3.2227]
[1736767100260,6.18,177.44,177.36,13.76101036]
[1736767100661,6.18,177.44,177.37,2.8215]
[1736767100963,6.18,177.44,177.36,13.76101036]
[1736767101464,6.18,177.44,177.39,2.8213]
[1736767101664,6.18,177.44,177.36,13.76101036]
[1736767102962,6.18,177.44,177.38,2.8214]
[1736767103666,6.18,177.44,177.36,13.76101036]
[1736767104266,6.18,177.44,177.38,2.8214]
[1736767104466,6.18,177.44,177.34,3.2227]
[1736767104665,6.18,177.44,177.36,13.76101036]
[1736767105460,6.18,177.44,177.39,2.8212]
[1736767105670,92.79993373,177.53,177.42,13.76101036]
[1736767105858,6.18,177.52,177.45,2.8203]
[1736767106166,6.18,177.52,177.43,3.3016]
[1736767106361,92.79993373,177.53,177.45,13.76101036]
[1736767106563,198.34895486,177.56,177.45,13.76101036]
[1736767106757,13.76101036,177.54,177.47,2.8199]
[1736767106962,13.76101036,177.51,177.43,3.3016]
[1736767108069,6.18,177.56,177.43,3.3016]
[1736767108261,13.76101036,177.55,177.43,3.3016]
[1736767108457,13.76101036,177.55,177.47,2.8199]
[1736767108769,6.18,177.56,177.45,13.76101036]
[1736767109663,13.76101036,177.58,177.45,13.76101036]
[1736767110068,6.16,177.57,177.45,13.76101036]
[1736767110270,6.16,177.57,177.48,2.8197]
[1736767110761,6.16,177.57,177.45,13.76101036]
[1736767111371,6.16,177.57,177.45,21.96569101]
[1736767111868,6.16,177.57,177.49,2.8196]
[1736767112465,6.16,177.57,177.5,2.8195]
[1736767113474,6.16,177.57,177.51,2.8194]
[1736767114169,6.16,177.57,177.5,2.8195]
[1736767114373,6.16,177.57,177.45,21.96569101]
[1736767115366,6.16,177.57,177.49,2.8196]
[1736767115565,28.12569101,177.57,177.43,15.2516]
[1736767116073,21.96569101,177.54,177.44,2.8205]
[1736767116674,21.96569101,177.54,177.43,15.2516]
[1736767116864,21.96569101,177.54,177.45,2.8202]
[1736767118176,21.96569101,177.54,177.43,15.2516]
[1736767118776,21.96569101,177.54,177.44,2.8205]
[1736767119474,21.96569101,177.54,177.45,2.8203]
[1736767120471,21.96569101,177.54,177.46,2.8201]
[1736767121575,21.96569101,177.54,177.47,2.8199]
[1736767121777,114.76562474,177.6,177.45,21.96569101]
[1736767122077,6.16,177.59,177.48,21.96569101]
[1736767122270,6.16,177.59,177.51,2.8193]
[1736767122468,6.16,177.59,177.49,1.577]
[1736767123070,6.16,177.59,177.51,2.8193]
[1736767123270,6.16,177.58,177.51,2.8193]
[1736767126878,6.16,177.58,177.5,3.2985]
[1736767127078,6.16,177.58,177.52,2.8192]
[1736767127479,6.16,177.58,177.5,3.2985]
[1736767127675,6.16,177.6,177.54,2.8189]
[1736767128282,4.0870772,177.61,177.54,2.8189]
[1736767128581,6.16,177.6,177.54,2.8189]
[1736767129682,6.16,177.6,177.53,2.819]
[1736767130982,6.16,177.6,177.54,2.8189]
[1736767131178,6.16,177.6,177.5,3.2985]
[1736767131591,14.101558,177.62,177.57,2.8184]
[1736767131886,102.26803373,177.63,177.57,2.8184]
[1736767131887,98.95993373,177.63,177.57,2.8184]
[1736767132087,98.95993373,177.63,177.51,21.96569101]
[1736767132284,6.16,177.63,177.58,2.8183]
[1736767132679,114.76562474,177.66,177.58,2.8183]
[1736767132884,13.3399394,177.65,177.57,2.8184]
[1736767133087,6.16,177.65,177.57,2.8184]
[1736767133386,13.72095224,177.64,177.57,12.11]
[1736767133589,13.72095224,177.61,177.57,12.11]
[1736767135385,21.96077575,177.63,177.57,12.11]
[1736767137294,21.96077575,177.63,177.57,9.5343]
[1736767137497,21.96077575,177.6,177.57,9.5343]
[1736767142996,92.79993373,177.58,177.57,9.5343]
[1736767143699,108.52464475,177.59,177.57,9.5343]
[1736767143895,6.16,177.58,177.57,9.5343]
[1736767145600,92.79993373,177.6,177.57,9.5343]
[1736767145803,92.79993373,177.6,177.57,12.3526]
[1736767146490,92.79993373,177.62,177.57,9.5343]
[1736767147705,92.79993373,177.62,177.58,2.8182]
[1736767147899,92.79993373,177.62,177.57,9.5343]
[1736767148100,92.79993373,177.63,177.57,9.5343]
[1736767148499,90.22473373,177.63,177.6,2.8178]
[1736767148702,90.22473373,177.63,177.57,31.49507575]
[1736767149100,90.22473373,177.63,177.61,2.8177]
[1736767149496,190.43357025,177.7,177.6,21.96077575]
[1736767149697,190.43357025,177.7,177.63,2.8173]
[1736767149698,196.59357025,177.7,177.63,2.8173]
[1736767149908,196.59357025,177.7,177.6,21.96077575]
[1736767150508,253.76506389,177.74,177.6,21.96077575]
[1736767150708,6.16,177.73,177.6,21.96077575]
[1736767151204,21.96077575,177.72,177.57,31.49507575]
[1736767151712,1.6895,177.71,177.57,31.49507575]
[1736767151899,1.6895,177.71,177.59,2.818]
[1736767152102,21.96077575,177.69,177.57,9.5343]
[1736767152403,21.96077575,177.66,177.57,9.5343]
[1736767152605,6.16,177.65,177.57,9.5343]
[1736767152906,21.96077575,177.63,177.57,9.5343]
[1736767154007,9.3845,177.65,177.57,9.5343]
[1736767156509,3.2245,177.65,177.57,9.5343]
[1736767156808,6.16,177.64,177.58,2.8182]
[1736767158115,6.16,177.64,177.56,13.71682095]
[1736767158306,13.71682095,177.61,177.51,1.6752]